bitfinex/quotes_BTCUSD_20250530
["timestamp","ask_amount","ask_price","bid_price","bid_amount"]
[1748624045229,0.38377168,103880.0,103870.0,0.62854969]
[1748624045434,0.4126504,103880.0,103870.0,0.62854969]
[1748624045647,0.59555449,103880.0,103870.0,0.43600132]
[1748624045851,0.40402446,103880.0,103870.0,0.43600132]
[1748624046054,0.58676837,103880.0,103870.0,0.43600132]
[1748624046288,0.57714235,103880.0,103870.0,0.43600132]
[1748624046489,1.77998056,103880.0,103870.0,0.00014702]
[1748624046703,2.51042185,103880.0,103870.0,0.00014702]
[1748624047117,1.32310934,103880.0,103870.0,0.00014702]
[1748624047350,1.82062934,103880.0,103870.0,0.00014702]
[1748624047526,1.82058934,103880.0,103870.0,0.00014702]
[1748624048600,1.81958934,103880.0,103870.0,0.00014702]
[1748624048991,1.82458934,103880.0,103870.0,0.00014702]
[1748624049407,2.64754185,103880.0,103870.0,0.00014702]
[1748624049632,0.01926002,103840.0,103820.0,0.2215366]
[1748624049860,1.22991076,103840.0,103830.0,0.17164417]
[1748624050063,1.22991076,103840.0,103830.0,0.51164417]
[1748624050271,1.22991076,103840.0,103830.0,0.70426672]
[1748624050272,0.37382936,103840.0,103830.0,0.70426672]
[1748624050484,0.01925891,103840.0,103830.0,0.70426672]
[1748624050682,0.02888855,103840.0,103830.0,0.70426672]
[1748624050901,0.01925891,103840.0,103830.0,0.71389784]
[1748624051117,0.01925604,103860.0,103850.0,0.19258545]
[1748624051344,0.22145129,103860.0,103850.0,0.0958543]
[1748624051548,0.79122677,103870.0,103860.0,0.19256691]
[1748624051765,0.79122677,103870.0,103860.0,0.4358543]
[1748624051766,1.17456113,103870.0,103860.0,0.4358543]
[1748624051966,1.16493381,103870.0,103860.0,0.4358543]
[1748624052183,0.7816,103870.0,103860.0,0.63804946]
[1748624052387,1.16493353,103870.0,103860.0,0.63804955]
[1748624052606,1.15526677,103870.0,103860.0,0.63804946]
[1748624052812,0.7816,103870.0,103860.0,0.65730549]
[1748624053018,0.7816,103870.0,103860.0,0.66693337]
[1748624053224,0.7816,103870.0,103860.0,0.64767762]
[1748624053225,0.79122667,103870.0,103860.0,0.64767762]
[1748624053422,0.7816,103870.0,103860.0,0.74637413]
[1748624053659,0.20219972,103900.0,103890.0,0.34]
[1748624053872,0.00014694,103900.0,103890.0,0.62836561]
[1748624054063,0.00977093,103900.0,103890.0,0.62836561]
[1748624054271,0.0193951,103900.0,103890.0,0.62836561]
[1748624054913,0.22151233,103900.0,103890.0,0.4358543]
[1748624055120,0.23113696,103900.0,103890.0,0.4358543]
[1748624055323,0.03864418,103900.0,103890.0,0.4358543]
[1748624055546,0.2118888,103900.0,103890.0,0.0958543]
[1748624055747,0.2128888,103900.0,103890.0,0.0958543]
[1748624055957,0.20213669,103890.0,103880.0,0.34]
[1748624056201,0.01925362,103870.0,103860.0,0.2134537]
[1748624056412,0.39272085,103870.0,103860.0,0.649308]
[1748624056632,0.38309399,103870.0,103860.0,0.32384885]
[1748624056841,0.36384,103870.0,103860.0,0.32384885]
[1748624057050,0.36384,103870.0,103860.0,0.66384885]
[1748624057051,0.39272048,103870.0,103860.0,0.66384885]
[1748624057255,0.39272039,103870.0,103860.0,0.66384885]
[1748624057471,0.23103431,103880.0,103870.0,0.01454085]
[1748624057687,0.02888058,103870.0,103860.0,0.37542764]
[1748624057907,0.02888058,103870.0,103860.0,0.64296206]
[1748624058115,0.37334658,103870.0,103860.0,0.64296206]
[1748624058312,0.57552255,103870.0,103860.0,0.0998543]
[1748624058524,0.38297362,103870.0,103860.0,0.29442121]
[1748624058727,0.37334667,103870.0,103860.0,0.29442121]
[1748624058962,0.00962584,103880.0,103860.0,0.6993181]
[1748624059177,0.19263972,103900.0,103880.0,0.34]
[1748624059394,0.22138735,103890.0,103880.0,0.0958543]
[1748624059813,0.21176225,103890.0,103880.0,0.0958543]
[1748624060047,0.55615131,103890.0,103870.0,0.19254837]
[1748624060267,0.20215614,103880.0,103870.0,0.0958543]
[1748624060891,0.38281205,103880.0,103870.0,0.30294352]
[1748624061099,0.58496791,103880.0,103870.0,0.11039515]
[1748624061331,0.39243807,103880.0,103870.0,0.64294352]
[1748624061766,0.02887807,103880.0,103870.0,0.64394352]
[1748624061981,0.00962575,103880.0,103870.0,0.64394352]
[1748624062186,0.38277159,103880.0,103870.0,0.64394352]
[1748624062396,0.02887752,103880.0,103870.0,0.62940267]
[1748624062594,0.39235752,103880.0,103870.0,0.62940267]
[1748624062810,0.38273159,103880.0,103870.0,0.63903008]
[1748624063020,0.3827314,103880.0,103870.0,0.63040267]
[1748624063221,0.21188943,103900.0,103880.0,0.53252984]
[1748624063433,0.39231595,103890.0,103880.0,0.4358543]
[1748624063631,0.20226526,103900.0,103880.0,0.62838414]
[1748624063867,0.3923151,103890.0,103880.0,0.62838414]
[1748624064078,0.39231492,103890.0,103880.0,0.62838414]
[1748624064281,0.4019402,103890.0,103880.0,0.62838414]
[1748624064479,0.37306482,103890.0,103880.0,0.62838414]
[1748624064679,0.39231492,103890.0,103880.0,0.0958543]
[1748624064937,0.4019403,103890.0,103880.0,0.0958543]
[1748624065171,0.01925177,103880.0,103860.0,0.5478787]
[1748624065388,0.59441636,103870.0,103860.0,0.11116609]
[1748624065586,0.58478978,103870.0,103860.0,0.01531179]
[1748624065821,0.64026292,103870.0,103860.0,0.01531179]
[1748624065966,0.24480292,103870.0,103860.0,0.01531179]
[1748624066173,1.23308277,103870.0,103850.0,0.21142426]
[1748624066369,0.01925547,103860.0,103850.0,0.28843975]
[1748624066593,0.36332,103870.0,103850.0,0.29806902]
[1748624066797,0.58475015,103870.0,103860.0,0.0958543]
[1748624066995,0.39220169,103870.0,103860.0,0.4358543]
[1748624067196,0.58475006,103870.0,103860.0,0.4358543]
[1748624067602,0.58475006,103870.0,103860.0,0.4408543]
[1748624067786,0.39212169,103870.0,103860.0,0.4388543]
[1748624067991,0.58467006,103870.0,103860.0,0.4358543]
[1748624068196,0.57504292,103870.0,103860.0,0.4378543]
[1748624068595,0.53404292,103870.0,103860.0,0.4378543]
[1748624068794,0.54367015,103870.0,103860.0,0.4378543]
[1748624069005,1.17825714,103870.0,103860.0,0.342]
[1748624069225,1.24085714,103870.0,103860.0,0.342]
[1748624069632,1.24085714,103870.0,103860.0,0.002]
[1748624070575,1.33336836,103870.0,103860.0,0.002]
[1748624070795,1.24085714,103870.0,103860.0,0.002]
[1748624071651,0.20219507,103860.0,103850.0,0.0194757]
[1748624071870,0.22147746,103850.0,103830.0,0.54224699]
[1748624072090,0.39192641,103850.0,103840.0,0.0958543]
[1748624072306,0.37266843,103850.0,103840.0,0.2884583]
[1748624072505,0.03851484,103850.0,103840.0,0.2884583]
[1748624072740,0.57488333,103850.0,103840.0,0.0958543]
[1748624072944,1.36322334,103850.0,103840.0,0.0958543]
[1748624075664,0.56525144,103790.0,103780.0,0.11165664]
[1748624076074,0.56525144,103790.0,103780.0,0.09634485]
[1748624076860,0.56525144,103790.0,103780.0,0.10134485]
[1748624077066,0.56525144,103790.0,103780.0,0.44134485]
[1748624078414,0.56525144,103790.0,103780.0,0.44534485]
[1748624078822,1.05515144,103790.0,103780.0,0.44534485]
[1748624079645,0.4899,103790.0,103780.0,0.68150722]
[1748624079846,0.22409484,103830.0,103810.0,0.5326577]
[1748624080052,0.2118847,103830.0,103820.0,0.0958543]
[1748624080254,0.57468452,103830.0,103820.0,0.0958543]
[1748624080428,0.56505358,103830.0,103820.0,0.0958543]
[1748624080624,0.56501358,103830.0,103820.0,0.0958543]
[1748624081619,0.20233144,103790.0,103780.0,0.01531179]
[1748624081833,0.56505144,103790.0,103780.0,0.45165664]
[1748624082034,0.57468581,103790.0,103780.0,0.43634485]
[1748624082509,0.56505144,103790.0,103780.0,0.09634485]
[1748624082915,0.56505144,103790.0,103780.0,0.10529452]
[1748624083127,0.56505144,103790.0,103780.0,0.44529452]
[1748624083334,0.39162311,103790.0,103780.0,0.6290602]
[1748624083557,0.40125794,103790.0,103780.0,0.6290602]
[1748624083779,0.39162311,103790.0,103780.0,0.2890602]
[1748624083994,0.37235409,103790.0,103780.0,0.30760105]
[1748624084179,0.40125739,103790.0,103780.0,0.30760105]
[1748624084442,0.40125739,103790.0,103780.0,0.31160105]
[1748624084646,0.41089222,103790.0,103780.0,0.31160105]
[1748624084783,0.40125739,103790.0,103780.0,0.31160105]
[1748624085424,0.19267822,103800.0,103790.0,0.19269679]
[1748624085425,0.00963326,103800.0,103790.0,0.19269679]
[1748624085629,0.03853043,103810.0,103790.0,0.29818583]
[1748624085848,0.23119009,103810.0,103800.0,0.0958543]
[1748624086057,0.57448534,103810.0,103800.0,0.0958543]
[1748624086435,0.56485255,103810.0,103800.0,0.0958543]
[1748624087713,0.56485255,103810.0,103800.0,0.0988543]
[1748624088128,0.20229255,103810.0,103800.0,0.0988543]
[1748624088345,0.56469264,103810.0,103800.0,0.0988543]
[1748624089376,0.57428543,103810.0,103800.0,0.0988543]
[1748624089579,0.0192653,103810.0,103800.0,0.63153252]
[1748624089785,0.58391785,103810.0,103800.0,0.4388543]
[1748624089998,1.27307233,103810.0,103800.0,0.003]
[1748624090421,1.24177233,103810.0,103800.0,0.003]
[1748624090623,0.60718534,103810.0,103800.0,0.003]
[1748624090828,0.20231203,103800.0,103790.0,0.53068306]
[1748624091025,0.22157901,103800.0,103790.0,0.43384057]
[1748624091230,0.23121217,103800.0,103790.0,0.62653736]
[1748624091539,0.23121217,103800.0,103790.0,0.43384057]
[1748624091754,0.39114014,103800.0,103790.0,0.62653736]
[1748624091959,0.39114005,103800.0,103790.0,0.62653736]
[1748624092156,0.40077377,103800.0,103790.0,0.62653736]
[1748624092364,0.00963326,103800.0,103790.0,0.64107821]
[1748624092578,0.37183326,103800.0,103790.0,0.65071295]
[1748624092820,0.37183307,103800.0,103790.0,0.68211295]
[1748624092975,0.02889996,103800.0,103790.0,0.67247821]
[1748624093183,0.00963307,103800.0,103790.0,0.68411286]
[1748624093432,0.38142633,103800.0,103790.0,0.67447821]
[1748624093629,0.39105987,103800.0,103790.0,0.67647821]
[1748624093787,0.01926642,103800.0,103790.0,0.67647821]
[1748624093986,0.20227357,103820.0,103800.0,0.19267822]
[1748624094307,0.47485169,103810.0,103800.0,0.20231213]
[1748624094512,0.01926122,103830.0,103810.0,0.21190831]
[1748624094876,0.58363545,103830.0,103820.0,0.0958543]
[1748624095072,0.5739647,103830.0,103820.0,0.0958543]
[1748624096838,0.56533367,103830.0,103820.0,0.0958543]
[1748624097077,0.56733367,103830.0,103820.0,0.0958543]
[1748624098023,0.56733367,103830.0,103820.0,0.2884954]
[1748624098224,0.38434196,103830.0,103820.0,0.2884954]
[1748624098433,0.57696451,103830.0,103820.0,0.0958543]
[1748624098841,0.21488451,103830.0,103820.0,0.0958543]
[1748624099040,0.003,103830.0,103820.0,0.2884954]
[1748624099272,0.003,103830.0,103820.0,0.0958543]
[1748624099273,0.58635472,103830.0,103820.0,0.0958543]
[1748624099900,0.03189217,103830.0,103820.0,0.29812736]
[1748624100063,0.59594575,103830.0,103820.0,0.0958543]
[1748624100256,0.58631518,103830.0,103820.0,0.0958543]
[1748624100457,0.57668452,103830.0,103820.0,0.0958543]
[1748624100958,0.57668452,103830.0,103820.0,0.2884954]
[1748624101160,0.3830616,103830.0,103820.0,0.2884954]
[1748624101372,0.002,103830.0,103820.0,0.68156334]
[1748624101579,0.01263029,103830.0,103820.0,0.70323203]
[1748624101815,0.01263029,103830.0,103820.0,0.75299511]
[1748624101816,0.003,103830.0,103820.0,0.75299511]
[1748624102237,0.001,103830.0,103820.0,0.75299511]
[1748624102437,0.001,103830.0,103820.0,0.74336371]
[1748624102648,0.02026104,103830.0,103820.0,0.64303625]
[1748624102857,0.0298917,103830.0,103820.0,0.65266811]
[1748624103091,0.03952254,103830.0,103820.0,0.67193138]
[1748624103306,0.21288433,103830.0,103820.0,0.4358543]
[1748624103544,0.21288433,103830.0,103820.0,0.0958543]
[1748624103759,0.17188433,103830.0,103820.0,0.0958543]
[1748624103961,0.17188433,103830.0,103820.0,0.11112217]
[1748624104168,0.18151517,103830.0,103820.0,0.11112217]
[1748624104615,0.22151536,103830.0,103820.0,0.11112217]
[1748624104835,0.21188452,103830.0,103820.0,0.11112217]
[1748624105456,0.21188452,103830.0,103820.0,0.09607678]
[1748624105693,0.21188452,103830.0,103820.0,0.00022248]
[1748624105694,1.36406273,103830.0,103820.0,0.00022248]
[1748624105903,1.4398526,103830.0,103820.0,0.00022248]
[1748624106400,1.5357069,103830.0,103820.0,0.00022248]
[1748624106633,1.44319568,103830.0,103820.0,0.00022248]
[1748624106871,0.91007151,103830.0,103820.0,0.00022248]
[1748624107107,1.40263151,103830.0,103820.0,0.00022248]
[1748624107570,0.76804452,103830.0,103820.0,0.00022248]
[1748624107811,1.40263151,103830.0,103820.0,0.00022248]
[1748624108283,1.42995434,103830.0,103820.0,0.00022248]
[1748624108757,0.21188452,103830.0,103820.0,0.00022248]
[1748624108986,0.22151499,103830.0,103820.0,0.09607678]
[1748624109212,0.59242537,103830.0,103820.0,0.09607678]
[1748624109440,0.5731247,103830.0,103820.0,0.09499678]
[1748624110145,0.21192496,103810.0,103800.0,0.01531179]
[1748624110369,0.01926475,103810.0,103800.0,0.65347803]
[1748624110585,0.01926289,103820.0,103810.0,0.20229033]
[1748624110863,0.57312451,103830.0,103810.0,0.30777742]
[1748624111082,0.03852217,103830.0,103820.0,0.65739118]
[1748624111321,0.39005133,103830.0,103820.0,0.66702295]
[1748624111538,0.39968217,103830.0,103820.0,0.64775931]
[1748624111767,0.37794275,103830.0,103820.0,0.64775941]
[1748624112012,0.38757369,103830.0,103820.0,0.63812745]
[1748624112235,0.0288916,103830.0,103820.0,0.66230026]
[1748624112457,0.02889142,103830.0,103820.0,0.70293203]
[1748624112692,0.04815329,103830.0,103820.0,0.69330026]
[1748624112914,0.04815329,103830.0,103820.0,0.45039515]
[1748624112915,0.21188442,103830.0,103820.0,0.45039515]
[1748624113136,0.20225358,103830.0,103820.0,0.45039515]
[1748624113565,0.01926178,103830.0,103820.0,0.64303625]
[1748624113801,0.0096302,103840.0,103830.0,0.53262255]
[1748624114034,0.02888354,103860.0,103850.0,0.00962927]
[1748624114267,0.00962686,103870.0,103860.0,0.3592565]
[1748624114510,0.00962565,103880.0,103870.0,0.19254837]
[1748624114752,0.02887511,103890.0,103880.0,0.34]
[1748624115000,0.02887511,103890.0,103880.0,0.63801063]
[1748624115245,0.02887511,103890.0,103880.0,0.63801053]
[1748624115246,0.02902205,103890.0,103880.0,0.63801053]
[1748624115480,0.00014694,103890.0,103880.0,0.64763665]
[1748624115702,0.00977176,103890.0,103880.0,0.64763665]
[1748624115960,0.00014694,103890.0,103880.0,0.82384]
[1748624116207,0.00014694,103890.0,103880.0,0.92727852]
[1748624116454,0.00014694,103890.0,103880.0,0.79711852]
[1748624116692,0.00014694,103890.0,103880.0,0.91579873]
[1748624117607,0.00014694,103890.0,103880.0,0.91979873]
[1748624118536,0.00014694,103890.0,103880.0,1.50980857]
[1748624118761,0.00014694,103890.0,103880.0,2.59854557]
[1748624119183,0.00014694,103890.0,103880.0,1.43594829]
[1748624119397,0.02902195,103890.0,103880.0,0.58174304]
[1748624119602,0.02902177,103890.0,103880.0,0.58174304]
[1748624119818,0.01939667,103890.0,103880.0,0.21124304]
[1748624120029,0.00977167,103890.0,103880.0,0.40377288]
[1748624120242,0.00977167,103890.0,103880.0,1.02661125]
[1748624120243,0.0386478,103890.0,103880.0,1.02661125]
[1748624120442,0.01939676,103890.0,103880.0,0.74771341]
[1748624120641,0.01939676,103890.0,103880.0,0.74771351]
[1748624120850,0.00014694,103890.0,103880.0,1.24797944]
[1748624121083,0.00014694,103890.0,103880.0,1.912789]
[1748624121273,0.00014694,103890.0,103880.0,3.290771]
[1748624121478,0.00014694,103890.0,103880.0,3.706411]
[1748624121682,0.00014694,103890.0,103880.0,2.201939]
[1748624121889,0.02902195,103890.0,103880.0,1.30676109]
[1748624122094,0.02902195,103890.0,103880.0,0.98488219]
[1748624122095,0.00014694,103890.0,103880.0,0.98488219]
[1748624122310,0.01939667,103890.0,103880.0,1.65468454]
[1748624122529,0.21190798,103890.0,103880.0,0.9047704]
[1748624122796,0.22153373,103890.0,103880.0,0.9047704]
[1748624123007,0.23115855,103890.0,103880.0,0.9047704]
[1748624123230,0.23115855,103890.0,103880.0,0.50363125]
[1748624123231,0.22153382,103890.0,103880.0,0.50363125]
[1748624123439,0.22153382,103890.0,103880.0,0.12995197]
[1748624123440,0.21190891,103890.0,103880.0,0.12995197]
[1748624123690,0.24470891,103890.0,103880.0,0.1038543]
[1748624123906,0.27480891,103890.0,103880.0,0.1038543]
[1748624124126,1.26739847,103890.0,103880.0,0.008]
[1748624124343,0.27470255,103870.0,103860.0,0.01140815]
[1748624124555,0.27470255,103870.0,103860.0,0.10726245]
[1748624124556,0.63290255,103870.0,103860.0,0.10726245]
[1748624124766,0.62990255,103870.0,103860.0,0.0958543]
[1748624125004,0.56700255,103870.0,103860.0,0.12204748]
[1748624125214,0.01925362,103870.0,103860.0,0.33387079]
[1748624125427,0.03850826,103870.0,103860.0,0.46204748]
[1748624125840,0.19254837,103870.0,103860.0,0.47758833]
[1748624126054,0.19005458,103880.0,103870.0,0.01454085]
[1748624126296,0.00014694,103890.0,103880.0,0.5663232]
[1748624126523,0.00014694,103890.0,103880.0,0.67180334]
[1748624126731,0.00014694,103890.0,103880.0,0.73520334]
[1748624126937,0.00014694,103890.0,103880.0,1.3675129]
[1748624127145,0.00014694,103890.0,103880.0,1.37892105]
[1748624127364,0.00014694,103890.0,103880.0,1.40778305]
[1748624127584,0.21190891,103890.0,103880.0,0.4906653]
[1748624127798,0.21190891,103890.0,103880.0,0.46215679]
[1748624128215,0.21190891,103890.0,103880.0,0.46415679]
[1748624128623,0.02902288,103890.0,103880.0,0.46415679]
[1748624128828,0.21190909,103890.0,103880.0,0.46415679]
[1748624129033,0.21190909,103890.0,103880.0,0.46215679]
[1748624129456,0.21190909,103890.0,103880.0,0.46315679]
[1748624129659,0.21190909,103890.0,103880.0,0.46615679]
[1748624130264,0.21190909,103890.0,103880.0,0.46315679]
[1748624130465,0.21190909,103890.0,103880.0,0.46515679]
[1748624130689,0.21190909,103890.0,103880.0,0.01476164]
[1748624130690,0.35059896,103890.0,103880.0,0.01476164]
[1748624130834,1.87308893,103890.0,103880.0,0.01476164]
[1748624131258,1.87308893,103890.0,103880.0,0.00335349]
[1748624131459,1.96894323,103890.0,103880.0,0.00335349]
[1748624131673,1.96894323,103890.0,103880.0,0.00035349]
[1748624131674,2.01994323,103890.0,103880.0,0.00035349]
[1748624131858,1.96994323,103890.0,103880.0,0.00035349]
[1748624132063,2.01994323,103890.0,103880.0,0.00035349]
[1748624132606,1.94415336,103890.0,103880.0,0.00035349]
[1748624132981,1.89415336,103890.0,103880.0,0.00035349]
[1748624133185,1.94415336,103890.0,103880.0,0.00035349]
[1748624133589,1.40425336,103890.0,103880.0,0.00035349]
[1748624134158,1.46125336,103890.0,103880.0,0.00035349]
[1748624134372,1.47125336,103890.0,103880.0,0.00035349]
[1748624134994,0.8389438,103890.0,103880.0,0.00035349]
[1748624135209,1.47125336,103890.0,103880.0,0.00035349]
[1748624135428,1.11141336,103890.0,103880.0,0.00035349]
[1748624135605,1.47101336,103890.0,103880.0,0.00035349]
[1748624135840,1.11141336,103890.0,103880.0,0.00035349]
[1748624136055,0.28280909,103890.0,103880.0,0.00035349]
[1748624136263,0.21990909,103890.0,103880.0,0.00035349]
[1748624136724,0.21990909,103890.0,103880.0,0.09620779]
[1748624136938,0.20728381,103890.0,103880.0,0.09620779]
[1748624137147,0.21590909,103890.0,103880.0,0.09620779]
[1748624137354,0.0360226,103890.0,103880.0,0.28873763]
[1748624137570,0.22553391,103890.0,103880.0,0.09620779]
[1748624137800,0.21290891,103890.0,103880.0,0.09620779]
[1748624138027,0.20928363,103890.0,103880.0,0.09620779]
[1748624139265,0.02639649,103890.0,103880.0,0.28873763]
[1748624139467,0.00714694,103890.0,103880.0,0.29836402]
[1748624139672,0.02639658,103890.0,103880.0,0.30799051]
[1748624139879,0.02639658,103890.0,103880.0,0.29836412]
[1748624140102,0.00714694,103890.0,103880.0,0.64327848]
[1748624140333,0.00714694,103890.0,103880.0,0.69463118]
[1748624140543,0.00714694,103890.0,103880.0,0.71388314]
[1748624140954,0.00714694,103890.0,103880.0,0.7042573]
[1748624141164,0.00714694,103890.0,103880.0,0.72350916]
[1748624141368,0.00414694,103890.0,103880.0,0.72350916]
[1748624141605,0.00414694,103890.0,103880.0,4.28239472]
[1748624141809,0.00962176,103930.0,103920.0,0.34]
[1748624142033,0.21217089,103930.0,103920.0,0.4358543]
[1748624142183,0.21217089,103930.0,103920.0,0.45039515]
[1748624142571,0.21217089,103930.0,103920.0,0.64285088]
[1748624142767,0.01973312,103930.0,103920.0,0.66209635]
[1748624142993,0.22179154,103930.0,103920.0,0.64285088]
[1748624143192,0.2314134,103930.0,103920.0,0.64285088]
[1748624143445,0.03897619,103930.0,103920.0,0.64285088]
[1748624143650,0.04197619,103930.0,103920.0,0.64285088]
[1748624143791,0.03235433,103930.0,103920.0,0.64285088]
[1748624144161,0.01973266,103930.0,103920.0,0.64285088]
[1748624144366,0.02935424,103930.0,103920.0,0.64285088]
[1748624144572,0.03435424,103930.0,103920.0,0.64285088]
[1748624144701,0.01511127,103930.0,103920.0,0.64285088]
[1748624144903,0.02935433,103930.0,103920.0,0.66209617]
[1748624145157,0.21217033,103930.0,103920.0,0.45039515]
[1748624145367,0.21217033,103930.0,103910.0,0.01140815]
[1748624145368,0.20207833,103920.0,103910.0,0.365949]
[1748624145564,0.20207833,103920.0,103910.0,0.4618033]
[1748624145767,0.20207833,103920.0,103910.0,0.45039515]
[1748624146496,0.20107833,103920.0,103910.0,0.45039515]
[1748624147336,0.20107833,103920.0,103910.0,0.45139515]
[1748624147463,0.21070083,103920.0,103910.0,0.45139515]
[1748624147677,0.21070083,103920.0,103910.0,0.65349302]
[1748624147678,0.51876668,103920.0,103910.0,0.65349302]
[1748624147900,0.71122315,103920.0,103910.0,0.45139515]
[1748624148290,0.70160092,103920.0,103910.0,0.58039515]
[1748624148752,0.70160092,103920.0,103910.0,0.45139515]
[1748624149678,0.70160092,103920.0,103910.0,0.67273942]
[1748624149679,0.4899,103920.0,103910.0,0.67273942]
[1748624150256,0.01011127,103930.0,103920.0,0.29996381]
[1748624150531,0.01011127,103930.0,103920.0,1.09445811]
[1748624150794,0.22179154,103930.0,103920.0,0.45039515]
[1748624151046,0.21217033,103930.0,103920.0,0.45039515]
[1748624151305,0.20254894,103930.0,103920.0,0.45039515]
[1748624151568,1.32470146,103930.0,103920.0,0.0958543]
[1748624151833,0.50001108,103930.0,103920.0,0.64285088]
[1748624152119,0.47501127,103930.0,103920.0,0.66409598]
[1748624152399,0.69631322,103930.0,103920.0,0.45239515]
[1748624152670,0.69631322,103930.0,103920.0,0.66309635]
[1748624152920,0.68669201,103930.0,103920.0,0.46201793]
[1748624153212,0.68669201,103930.0,103920.0,0.45239515]
[1748624153213,0.66744913,103930.0,103920.0,0.45239515]
[1748624153705,0.66744913,103930.0,103920.0,0.45039515]
[1748624153706,0.66744913,103930.0,103920.0,0.45139515]
[1748624154370,0.66744913,103930.0,103920.0,0.45239515]
[1748624154779,0.66744913,103930.0,103920.0,0.11239515]
[1748624154979,0.20205907,103930.0,103920.0,0.11239515]
[1748624155149,0.20205907,103930.0,103920.0,0.45239515]
[1748624155535,1.25329159,103930.0,103920.0,0.002]
[1748624155765,0.89501159,103930.0,103920.0,0.002]
[1748624156175,0.20205907,103930.0,103920.0,0.0968543]
[1748624156382,0.20205907,103930.0,103920.0,0.11239515]
[1748624156555,0.00962158,103930.0,103920.0,0.30485088]
[1748624156806,0.22330176,103930.0,103920.0,0.11239515]
[1748624157031,0.22130176,103930.0,103920.0,0.30285088]
[1748624157233,0.22130176,103930.0,103920.0,0.11039515]
[1748624157449,0.01924288,103930.0,103920.0,0.30385088]
[1748624157651,0.21168009,103930.0,103920.0,0.31247357]
[1748624157797,0.01924232,103930.0,103920.0,0.31247348]
[1748624158004,0.03848538,103930.0,103920.0,0.30385088]
[1748624158286,0.23092259,103930.0,103920.0,0.11139515]
[1748624158451,0.21168027,103930.0,103920.0,0.11139515]
[1748624158860,0.20205888,103930.0,103920.0,0.11139515]
[1748624159238,0.20205888,103930.0,103920.0,0.0968543]
[1748624159601,1.2543514,103930.0,103920.0,0.001]
[1748624159737,0.56009888,103930.0,103920.0,0.0968543]
[1748624159934,0.56009888,103930.0,103920.0,0.0978543]
[1748624160184,0.20205888,103930.0,103920.0,0.0978543]
[1748624160414,0.20205888,103930.0,103920.0,0.0968543]
[1748624160572,0.2020586,103930.0,103920.0,0.11039515]
[1748624160779,0.20205879,103930.0,103920.0,0.11039515]
[1748624161791,0.20405879,103930.0,103920.0,0.0958543]
[1748624162431,0.20405879,103930.0,103920.0,0.31247348]
[1748624162432,0.02124288,103930.0,103920.0,0.31247348]
[1748624162633,0.21368064,103930.0,103920.0,0.11039515]
[1748624163025,0.21168064,103930.0,103920.0,0.11039515]
[1748624163427,0.21168064,103930.0,103920.0,0.0958543]
[1748624163428,0.86084672,103930.0,103920.0,0.0958543]
[1748624163631,0.21170083,103920.0,103910.0,0.10726245]
[1748624163839,0.00962028,103940.0,103920.0,0.22132277]
[1748624164050,0.4899,103950.0,103930.0,0.70259682]
[1748624164250,0.4824115,103950.0,103940.0,0.01454085]
[1748624164594,0.47471604,103950.0,103940.0,0.11039515]
[1748624164784,0.47471604,103950.0,103940.0,0.30281385]
[1748624164995,0.46702058,103950.0,103940.0,0.30281385]
[1748624165196,0.46702058,103950.0,103940.0,0.32205562]
[1748624165379,0.45932512,103950.0,103940.0,0.31243478]
[1748624165580,0.46894429,103950.0,103940.0,0.30281385]
[1748624165927,0.45162966,103950.0,103940.0,0.32205543]
[1748624166138,0.45162966,103950.0,103940.0,0.31243469]
[1748624166327,0.4439342,103950.0,103940.0,0.33137322]
[1748624166748,0.43624116,103950.0,103940.0,0.33137331]
[1748624166888,0.44024116,103950.0,103940.0,0.37321553]
[1748624167106,0.42854812,103950.0,103940.0,0.37321553]
[1748624167405,0.42285508,103950.0,103940.0,0.38283618]
[1748624167593,0.42285508,103950.0,103940.0,0.42575637]
[1748624167820,0.41516204,103950.0,103940.0,0.43716452]
[1748624168019,0.38150496,103950.0,103940.0,0.80906452]
[1748624168232,0.37381192,103950.0,103940.0,0.80906452]
[1748624168440,0.37381192,103950.0,103940.0,0.81296816]
[1748624168660,0.36611888,103950.0,103940.0,0.81296816]
[1748624169042,0.35842584,103950.0,103940.0,0.81296816]
[1748624169472,0.002,103950.0,103940.0,0.81296816]
[1748624169642,0.02,103970.0,103960.0,0.57577875]
[1748624169801,0.02,103970.0,103960.0,0.4358543]
[1748624169802,0.0488528,103970.0,103960.0,0.4358543]
[1748624170006,0.65520193,103970.0,103960.0,0.62823598]
[1748624170295,0.85718317,103970.0,103960.0,0.4358543]
[1748624170505,0.21163955,103950.0,103940.0,0.02093853]
[1748624170717,1.21796563,103950.0,103940.0,0.02193853]
[1748624170943,1.19796563,103950.0,103940.0,0.01893853]
[1748624171153,0.23212001,103950.0,103930.0,0.19243017]
[1748624171357,0.0288614,103940.0,103930.0,0.62828447]
[1748624171565,0.03848205,103940.0,103930.0,0.62828447]
[1748624171771,0.23090057,103940.0,103930.0,0.4483463]
[1748624171985,0.03848187,103940.0,103930.0,0.4483463]
[1748624172218,0.03848187,103940.0,103930.0,0.13128702]
[1748624172219,0.2116601,103940.0,103930.0,0.13128702]
[1748624172427,0.2116601,103940.0,103930.0,0.47128702]
[1748624172626,0.2116601,103940.0,103930.0,0.13128702]
[1748624172836,0.2116601,103940.0,103930.0,0.11979502]
[1748624173044,0.2096601,103940.0,103930.0,0.11979502]
[1748624173248,0.85872618,103940.0,103930.0,0.001]
[1748624173469,0.85772618,103940.0,103930.0,0.001]
[1748624173878,0.85772618,103940.0,103930.0,0.004]
[1748624174089,0.85772618,103940.0,103930.0,0.006]
[1748624174327,0.2718601,103940.0,103930.0,0.341]
[1748624174749,0.2728601,103940.0,103930.0,0.001]
[1748624174953,0.85872618,103940.0,103930.0,0.001]
[1748624175375,0.85872618,103940.0,103920.0,0.33956]
[1748624175376,0.81852496,103930.0,103920.0,0.33956]
[1748624175582,0.20105888,103930.0,103920.0,0.4354143]
[1748624176873,0.20105888,103930.0,103920.0,0.4374143]
[1748624178173,0.20105888,103930.0,103920.0,0.45997602]
[1748624178912,0.20105888,103930.0,103920.0,0.4374143]
[1748624179117,0.81692496,103930.0,103920.0,0.4374143]
[1748624179719,0.84992496,103930.0,103920.0,0.002]
[1748624180530,1.20676496,103930.0,103920.0,0.002]
[1748624180773,1.29927618,103930.0,103920.0,0.002]
[1748624180971,1.20676496,103930.0,103920.0,0.002]
[1748624181600,0.21172101,103910.0,103900.0,0.02603285]
[1748624181810,0.01924676,103910.0,103900.0,0.31437993]
[1748624182022,0.22134463,103910.0,103900.0,0.30288793]
[1748624182243,0.23096834,103910.0,103900.0,0.11039515]
[1748624182444,0.2213451,103910.0,103900.0,0.12188715]
[1748624182656,0.21172158,103910.0,103900.0,0.12188715]
[1748624182871,0.21272158,103910.0,103900.0,0.12188715]
[1748624184827,0.79858766,103910.0,103900.0,0.13032665]
[1748624185019,1.31019888,103910.0,103900.0,0.011492]
[1748624185459,0.26461723,103900.0,103890.0,0.02681467]
[1748624185668,0.85048331,103900.0,103890.0,0.02681467]
[1748624185877,0.26461723,103900.0,103890.0,0.02681467]